bitfinex-derivatives/quotes_BTCF0:USTF0_20250207
["timestamp","ask_amount","ask_price","bid_price","bid_amount"]
[1738912320270,0.00015462,97050.0,97049.0,0.2100097]
[1738912320473,0.00015462,97050.0,97049.0,0.2090097]
[1738912320669,0.00315462,97050.0,97049.0,0.2080097]
[1738912321276,0.00315462,97050.0,97049.0,0.2060097]
[1738912321466,0.00615462,97050.0,97049.0,0.2060097]
[1738912322073,0.21216212,97050.0,97049.0,0.2060097]
[1738912322267,0.20916212,97050.0,97049.0,0.2060097]
[1738912322474,0.21216212,97050.0,97049.0,0.2060097]
[1738912322879,0.20916212,97050.0,97049.0,0.2060097]
[1738912323172,0.21016212,97050.0,97049.0,0.2060097]
[1738912323371,0.206016,97046.0,97045.0,0.2161729]
[1738912323577,0.206016,97046.0,97045.0,0.206018]
[1738912323886,0.2060415,97034.0,97033.0,0.24683786]
[1738912324089,0.3608,97048.0,97023.0,0.0515157]
[1738912324090,0.2060458,97032.0,97031.0,0.00015462]
[1738912326182,0.2060458,97032.0,97031.0,0.00315462]
[1738912326578,0.2070458,97032.0,97031.0,0.00615462]
[1738912327381,0.001,97032.0,97031.0,0.00615462]
[1738912327986,0.3608,97034.0,97031.0,0.00315462]
[1738912328190,0.3608,97034.0,97032.0,0.2060458]
[1738912329486,0.3618,97034.0,97032.0,0.2060458]
[1738912329881,0.3608,97034.0,97032.0,0.2060458]
[1738912330580,0.3608,97034.0,97032.0,0.2070458]
[1738912331193,0.3608,97034.0,97032.0,0.2080458]
[1738912331882,0.3608,97034.0,97032.0,0.003]
[1738912332083,0.3608,97039.0,97032.0,0.003]
[1738912332282,0.5668309,97039.0,97038.0,0.206033]
[1738912333583,0.5688309,97039.0,97038.0,0.206033]
[1738912334587,0.3628,97039.0,97031.0,0.00015462]
[1738912334790,0.3648,97039.0,97031.0,0.00015462]
[1738912335788,0.3608,97039.0,97031.0,0.00215462]
[1738912335984,0.3608,97039.0,97032.0,0.2060428]
[1738912335985,0.2060458,97033.0,97032.0,0.2060428]
[1738912338677,0.2080458,97033.0,97032.0,0.2060428]
[1738912339094,0.2100458,97033.0,97032.0,0.2060428]
[1738912340795,0.004,97033.0,97032.0,0.2060428]
[1738912341893,0.2100437,97033.0,97032.0,0.2060428]
[1738912342287,0.5708437,97033.0,97032.0,0.2060428]
[1738912342793,0.5698437,97033.0,97032.0,0.2060428]
[1738912343386,0.5688437,97033.0,97032.0,0.2060428]
[1738912343587,0.5708437,97033.0,97032.0,0.2060428]
[1738912344297,0.5688437,97033.0,97032.0,0.2060428]
[1738912344490,0.5708437,97033.0,97032.0,0.2060428]
[1738912345286,0.5698437,97033.0,97032.0,0.2060428]
[1738912346190,0.5708437,97033.0,97032.0,0.2060428]
[1738912351100,0.3648,97033.0,97032.0,0.2060428]
[1738912351305,0.5708437,97033.0,97032.0,0.2060428]
[1738912354199,0.2060458,97032.0,97031.0,0.00015462]
[1738912355100,0.62096253,97032.0,97031.0,0.00015462]
[1738912355304,0.20605,97030.0,97029.0,0.00154579]
[1738912357293,0.20705,97030.0,97029.0,0.00154579]
[1738912357488,0.20805,97030.0,97029.0,0.00154579]
[1738912358305,0.2060692,97021.0,97020.0,0.24703172]
[1738912358601,0.5668692,97021.0,97020.0,0.24703172]
[1738912359902,0.5668692,97021.0,97020.0,0.20622592]
[1738912360303,0.5668692,97021.0,97020.0,0.21122592]
[1738912360903,0.5668692,97021.0,97020.0,0.00515462]
[1738912363296,0.5668692,97021.0,97020.0,0.21122592]
[1738912363493,0.3608,97021.0,97020.0,0.22733506]
[1738912366204,0.3608,97023.0,97021.0,0.2060692]
[1738912366598,0.3608,97023.0,97022.0,0.0161082]
[1738912367407,0.3608,97023.0,97022.0,0.2221752]
[1738912368111,0.3608,97023.0,97022.0,0.2271752]
[1738912368309,0.3608,97023.0,97022.0,0.2271753]
[1738912370805,0.09654086,97030.0,97022.0,0.0211083]
[1738912371108,0.3608,97029.0,97028.0,0.2060543]
[1738912371307,0.3608,97029.0,97028.0,0.2221626]
[1738912372317,0.5668522,97029.0,97028.0,0.22216224]
[1738912372718,0.3608,97029.0,97028.0,0.01610794]
[1738912372913,0.3608,97029.0,97028.0,0.22216224]
[1738912373321,0.5668522,97029.0,97028.0,0.22216224]
[1738912373511,0.5668522,97029.0,97028.0,0.01610794]
[1738912373818,0.2060692,97021.0,97020.0,0.00015462]
[1738912374018,0.5668692,97021.0,97020.0,0.01609671]
[1738912374719,0.57701127,97021.0,97020.0,0.01609671]
[1738912375215,0.57701127,97021.0,97020.0,0.00015462]
[1738912375417,0.57701127,97021.0,97020.0,0.00215462]
[1738912376116,0.57701127,97021.0,97020.0,0.00515462]
[1738912379011,0.37094207,97021.0,97005.0,0.3012771]
[1738912379307,0.206101,97006.0,97005.0,0.3012771]
[1738912380217,0.206101,97006.0,97005.0,0.3042771]
[1738912380911,0.207101,97006.0,97005.0,0.3122771]
[1738912382023,0.208101,97006.0,97005.0,0.3102771]
[1738912382413,0.208101,97006.0,97005.0,0.5163802]
[1738912383017,0.208101,97006.0,97005.0,0.0634]
[1738912383221,0.568901,97006.0,97005.0,0.0634]
[1738912384013,0.5791564,97006.0,97005.0,0.0634]
[1738912391634,0.2183564,97006.0,97005.0,0.0634]
[1738912391835,0.9399564,97006.0,97005.0,0.0634]
[1738912392441,0.9399564,97006.0,97005.0,0.009]
[1738912392829,0.9399564,97006.0,97005.0,0.00854579]
[1738912393027,0.7338554,97006.0,96999.0,0.00154606]
[1738912393227,0.2061138,97000.0,96999.0,0.00154606]
[1738912394831,0.2061138,97000.0,96999.0,0.00254606]
[1738912395137,0.2071138,97000.0,96999.0,0.00454606]
[1738912395525,0.2071138,97000.0,96999.0,0.00354606]
[1738912395721,0.2081138,97000.0,96999.0,0.00454606]
[1738912396349,0.2061201,96997.0,96996.0,0.00015462]
[1738912396533,0.98183683,96997.0,96996.0,0.00015462]
[1738912396934,0.2061393,96988.0,96987.0,0.2468771]
[1738912397130,0.5669393,96988.0,96987.0,0.2468771]
[1738912397927,0.3608,96988.0,96987.0,0.4530185]
[1738912399039,0.3608,96988.0,96987.0,0.2061414]
[1738912399342,0.3608,96988.0,96983.0,0.2061491]
[1738912399540,0.3608,96988.0,96978.0,9.312e-05]
[1738912399734,0.3608,96988.0,96986.0,0.2061427]
[1738912399933,0.3608,96988.0,96987.0,0.1067]
[1738912400836,0.206132,96992.0,96987.0,0.1067]
[1738912401034,0.3608,96988.0,96987.0,0.3128414]
[1738912402349,0.5669392,96988.0,96987.0,0.3128414]
[1738912403639,0.3608,96988.0,96987.0,0.3128414]
[1738912404842,0.5669392,96988.0,96987.0,0.3128414]
[1738912406747,0.3608,96988.0,96987.0,0.3128414]
[1738912407747,0.5669392,96988.0,96987.0,0.3128414]
[1738912407954,0.5669392,96988.0,96987.0,0.1067]
[1738912408448,0.5669392,96988.0,96987.0,0.3128414]
[1738912409745,0.3608,96988.0,96987.0,0.3128414]
[1738912411153,0.3608,96988.0,96987.0,0.1067]
[1738912411353,0.3608,96988.0,96978.0,9.312e-05]
[1738912411542,0.2061584,96979.0,96978.0,9.312e-05]
[1738912412151,0.5669584,96979.0,96978.0,9.312e-05]
[1738912414746,0.5679584,96979.0,96978.0,9.312e-05]
[1738912415444,0.57803008,96979.0,96978.0,9.312e-05]
[1738912417853,0.57803008,96979.0,96978.0,0.20625362]
[1738912418049,0.57803008,96979.0,96978.0,9.312e-05]
[1738912423257,0.93883008,96979.0,96978.0,9.312e-05]
[1738912430161,1.17248817,96979.0,96978.0,9.312e-05]
[1738912430458,1.27783817,96979.0,96978.0,9.312e-05]
[1738912432865,1.09432374,96979.0,96978.0,9.312e-05]
[1738912438567,1.09432374,96979.0,96978.0,2e-08]
[1738912439765,0.88816534,96979.0,96954.0,0.0523]
[1738912439970,0.5670094,96955.0,96954.0,0.0523]
[1738912441155,0.5680094,96955.0,96954.0,0.0523]
[1738912441362,0.5690094,96955.0,96954.0,0.0523]
[1738912441864,0.3628,96955.0,96954.0,0.2585115]
[1738912443263,0.3618,96955.0,96954.0,0.2585115]
[1738912444259,0.3608,96955.0,96954.0,0.2585115]
[1738912446670,0.5670094,96955.0,96954.0,0.2585115]
[1738912446872,0.5670094,96955.0,96954.0,0.0523]
[1738912449471,0.2062179,96951.0,96950.0,0.1069]
[1738912449775,0.62113463,96951.0,96950.0,0.1069]
[1738912450759,0.2062349,96943.0,96942.0,0.18460515]
[1738912450960,0.5670349,96943.0,96942.0,0.18460515]
[1738912452269,0.5680349,96943.0,96942.0,0.18460515]
[1738912453465,0.5690349,96943.0,96942.0,0.18460515]
[1738912454872,0.5690349,96943.0,96939.0,0.3140431]
[1738912456072,0.3628,96943.0,96939.0,0.1078]
[1738912456274,0.3618,96943.0,96939.0,0.1078]
[1738912456477,0.002,96943.0,96942.0,0.2062371]
[1738912456675,0.15437623,96953.0,96952.0,0.2062158]
[1738912456975,0.10495147,96959.0,96958.0,0.206203]
[1738912458073,0.2061969,96961.0,96960.0,0.2061988]
[1738912458469,0.10495147,96962.0,96960.0,0.2061988]
[1738912459274,0.003,96961.0,96960.0,0.2061988]
[1738912459779,0.10495147,96962.0,96960.0,0.2061988]
[1738912459973,0.002,96961.0,96960.0,0.2061988]
[1738912460873,0.3608,96961.0,96957.0,0.1555]
[1738912461073,0.206203,96958.0,96957.0,0.1039]
[1738912461379,0.206203,96958.0,96957.0,0.0507]
[1738912462777,0.207203,96958.0,96957.0,0.0507]
[1738912464673,0.207203,96958.0,96957.0,0.2569051]
[1738912465381,0.207203,96958.0,96957.0,0.0507]
[1738912466884,0.207203,96958.0,96957.0,0.2569052]
[1738912467876,0.207203,96958.0,96957.0,0.0507]
[1738912468776,0.207203,96958.0,96952.0,0.2062146]
[1738912468777,0.2062137,96953.0,96952.0,0.2062146]
[1738912470185,0.2062137,96953.0,96952.0,0.2072146]
[1738912486083,0.2062137,96953.0,96952.0,0.001]
[1738912488495,0.2062137,96953.0,96952.0,0.2072158]
[1738912491997,0.2062072,96957.0,96956.0,0.2062063]
[1738912493992,0.2072072,96957.0,96956.0,0.2062063]
[1738912494793,0.001,96957.0,96956.0,0.2062063]
[1738912509506,0.15470493,96965.0,96963.0,0.2062127]
[1738912509807,0.15470493,96965.0,96955.0,0.0968]
[1738912509808,0.15470493,96970.0,96969.0,0.2062]
[1738912511003,0.16070493,96970.0,96969.0,0.2062]
[1738912511519,0.16670493,96970.0,96969.0,0.2062]
[1738912513597,0.012,96970.0,96969.0,0.2062]
[1738912514719,0.00015471,96979.0,96972.0,0.206192]
[1738912515909,0.00454734,96978.0,96968.0,0.30800457]
[1738912516112,0.2061993,96970.0,96968.0,0.30800457]
[1738912517813,0.2101993,96970.0,96968.0,0.30800457]
[1738912518015,0.2101993,96970.0,96966.0,0.18507215]
[1738912518217,0.2141993,96970.0,96966.0,0.18507215]
[1738912519016,0.008,96970.0,96966.0,0.18507215]
[1738912519216,0.007,96970.0,96968.0,0.2062016]
[1738912520819,0.3608,96972.0,96966.0,0.18507215]
[1738912521020,0.006,96970.0,96966.0,0.18507215]
[1738912521326,0.006,96970.0,96969.0,0.2062]
[1738912521515,0.005,96970.0,96969.0,0.2062]
[1738912521817,0.005,96970.0,96969.0,0.20760916]
[1738912522023,0.003,96970.0,96969.0,0.20760916]
[1738912522325,0.002,96970.0,96969.0,0.20760916]
[1738912522520,0.004,96970.0,96969.0,0.20760916]
[1738912522917,0.002,96970.0,96969.0,0.20760916]
[1738912523122,0.003,96970.0,96969.0,0.20760916]
[1738912523313,0.005,96970.0,96969.0,0.20760916]
[1738912524717,0.002,96970.0,96969.0,0.20760916]
[1738912525020,0.005,96970.0,96969.0,0.20760916]
[1738912525920,0.002,96970.0,96969.0,0.20760916]
[1738912526124,0.005,96970.0,96969.0,0.20760916]
[1738912527523,0.002,96970.0,96969.0,0.20760916]
[1738912527722,0.005,96970.0,96969.0,0.20760916]
[1738912528127,0.002,96970.0,96969.0,0.20760916]
[1738912528435,0.005,96970.0,96969.0,0.20760916]
[1738912529625,0.003,96970.0,96969.0,0.20760916]
[1738912529825,0.005,96970.0,96969.0,0.20760916]
[1738912532721,0.003,96970.0,96969.0,0.20760916]
[1738912533724,0.00154734,96978.0,96977.0,0.206183]
[1738912533927,0.00154734,96978.0,96977.0,0.20759216]
[1738912535024,0.00554734,96978.0,96977.0,0.20759216]
[1738912536546,0.00954734,96978.0,96977.0,0.20759216]
[1738912536839,0.21572824,96978.0,96977.0,0.00140916]
[1738912537236,0.21172824,96978.0,96977.0,0.00140916]
[1738912537537,0.21572824,96978.0,96977.0,0.00140916]
[1738912537927,0.2062043,96967.0,96966.0,0.24676287]
[1738912538538,0.2062043,96967.0,96963.0,0.0494]
[1738912538737,0.0483,96966.0,96963.0,0.0494]
[1738912539341,0.0483,96966.0,96964.0,0.2062106]
[1738912540635,0.0513,96966.0,96964.0,0.2062106]
[1738912540841,0.0533,96966.0,96964.0,0.2062106]
[1738912541135,0.005,96966.0,96964.0,0.2062106]
[1738912542741,0.003,96966.0,96964.0,0.2062106]
[1738912543038,0.4558,96977.0,96976.0,0.2061851]
[1738912544134,0.4608,96977.0,96976.0,0.2061851]
[1738912544640,0.4558,96977.0,96976.0,0.2061851]
[1738912544841,0.4598,96977.0,96976.0,0.2061851]
[1738912545027,0.4628,96977.0,96976.0,0.2061851]
[1738912546641,0.4638,96977.0,96976.0,0.2061851]
[1738912547041,0.4658,96977.0,96976.0,0.2061851]
[1738912547737,0.4558,96977.0,96976.0,0.2061851]
[1738912547944,0.105,96977.0,96976.0,0.2061851]
[1738912548536,0.105,96977.0,96976.0,0.39149591]
[1738912550038,0.01,96977.0,96976.0,0.39149591]
[1738912552546,0.01,96977.0,96976.0,0.2061851]
[1738912552737,0.005,96977.0,96976.0,0.2061851]
[1738912552931,0.004,96977.0,96976.0,0.2061851]
[1738912553139,0.008,96977.0,96976.0,0.2061851]
[1738912559942,0.0451,96990.0,96989.0,0.2061575]
[1738912560146,0.0451,96990.0,96989.0,0.2555175]
[1738912561555,0.0541,96990.0,96989.0,0.2555175]
[1738912562047,0.0631,96990.0,96989.0,0.2565175]
[1738912563054,0.018,96990.0,96989.0,0.2565175]
[1738912563240,0.00015471,96999.0,96989.0,0.05036]
[1738912563446,0.00015471,96999.0,96998.0,0.2061177]
[1738912564247,0.42068217,97028.0,96997.0,0.3608]
[1738912564248,0.0473,97019.0,96997.0,0.3608]
[1738912564556,0.00124001,97014.0,97013.0,0.2060859]
[1738912564755,0.0479,97018.0,97017.0,0.2060774]
[1738912567154,0.0479,97018.0,97017.0,0.2070774]
[1738912567550,0.0509,97018.0,97017.0,0.2070774]
[1738912567955,0.0479,97018.0,97017.0,0.2070774]
[1738912568152,0.0489,97018.0,97017.0,0.2070774]
[1738912568353,0.0452,97026.0,97025.0,0.2060605]
[1738912569557,0.0472,97026.0,97025.0,0.2060605]
[1738912570352,0.0452,97026.0,97025.0,0.2060605]
[1738912570746,0.0482,97026.0,97025.0,0.2060605]
[1738912571249,0.0452,97026.0,97025.0,0.2060605]
[1738912571560,0.0472,97026.0,97025.0,0.2060605]
[1738912572064,0.0482,97026.0,97025.0,0.2060605]
[1738912576453,0.0482,97026.0,97017.0,0.18464987]
[1738912576656,0.3608,97020.0,97018.0,0.04932]
[1738912577857,0.2060845,97024.0,97018.0,0.04932]
[1738912578459,0.2060845,97024.0,97018.0,0.05032]
[1738912579558,0.2060845,97024.0,97018.0,0.04932]
[1738912579767,0.2060845,97024.0,97018.0,0.05032]
[1738912579955,0.2060845,97024.0,97018.0,0.05332]
[1738912580157,0.0452,97026.0,97021.0,0.2060881]
[1738912580363,0.0452,97026.0,97018.0,0.05332]
[1738912580962,0.0452,97026.0,97024.0,0.206083]
[1738912581359,0.0452,97026.0,97018.0,0.003]
[1738912581554,0.2512801,97026.0,97019.0,0.04932]
[1738912582360,0.2532801,97026.0,97019.0,0.04932]
[1738912583049,0.2512801,97026.0,97019.0,0.04932]
[1738912583857,0.0452,97026.0,97023.0,0.2060841]
[1738912584060,0.0462,97026.0,97023.0,0.2060841]
[1738912585068,0.0482,97026.0,97023.0,0.2060841]
[1738912585456,0.25528,97026.0,97023.0,0.2060841]
[1738912586056,0.0492,97026.0,97019.0,0.04932]
[1738912586258,0.2060875,97022.0,97019.0,0.04932]
[1738912587264,0.0492,97026.0,97020.0,0.2060907]
[1738912587464,0.0472,97026.0,97020.0,0.2060907]
[1738912587667,0.001,97022.0,97020.0,0.2060907]
[1738912588576,0.0452,97026.0,97022.0,0.2060874]
[1738912588773,0.0462,97026.0,97022.0,0.2060874]
[1738912589078,0.0452,97026.0,97022.0,0.2060874]
[1738912590864,0.0472,97026.0,97022.0,0.2060874]
[1738912591874,0.0472,97026.0,97025.0,0.2060811]
[1738912592272,0.0492,97026.0,97025.0,0.2060811]
[1738912592970,0.0472,97026.0,97025.0,0.2060811]
[1738912593175,0.0502,97026.0,97025.0,0.2060811]
[1738912593876,0.0512,97026.0,97025.0,0.2060811]
[1738912600672,0.0482,97026.0,97025.0,0.2060811]
[1738912600872,0.0492,97026.0,97025.0,0.2060811]
[1738912601567,0.0482,97026.0,97025.0,0.2060811]
[1738912602571,0.0492,97026.0,97025.0,0.2060811]
[1738912604780,0.0472,97026.0,97025.0,0.2060811]
[1738912604984,0.003,97026.0,97025.0,0.2220448]
[1738912605177,0.001,97026.0,97025.0,0.2220448]
[1738912605376,0.003,97026.0,97025.0,0.2220448]
[1738912605777,0.001,97026.0,97025.0,0.2220448]
[1738912605975,0.003,97026.0,97025.0,0.2220448]
[1738912607177,0.003,97026.0,97025.0,0.5828448]
[1738912607979,0.003,97026.0,97025.0,0.5668811]
[1738912608291,0.002,97026.0,97025.0,0.5668811]
[1738912608583,0.003,97026.0,97025.0,0.5668811]
[1738912610187,0.003,97026.0,97025.0,0.91543455]
[1738912611395,0.003,97026.0,97025.0,0.55463455]
[1738912612082,0.003,97026.0,97025.0,0.57058822]
[1738912612988,0.003,97026.0,97025.0,0.55463455]
[1738912613385,0.003,97026.0,97025.0,0.57058632]
[1738912616992,0.003,97026.0,97025.0,0.93138632]
[1738912617693,0.003,97026.0,97025.0,0.57058632]
[1738912617994,0.003,97026.0,97025.0,0.93138632]
[1738912619591,0.002,97026.0,97025.0,0.93438632]
[1738912620191,0.002,97026.0,97025.0,0.93138632]
[1738912620498,0.002,97026.0,97025.0,0.93454021]
[1738912620884,0.00015463,97027.0,97025.0,0.93554021]
[1738912621084,0.00015463,97027.0,97026.0,0.01610566]
[1738912622304,0.00015463,97027.0,97026.0,0.01591747]
[1738912623498,0.00015463,97027.0,97026.0,0.01791747]
[1738912623902,0.00015463,97027.0,97026.0,0.37873499]
[1738912624401,0.00015463,97027.0,97026.0,0.68717561]
[1738912624789,0.00015463,97027.0,97026.0,0.32637561]
[1738912624993,0.75435463,97027.0,97019.0,0.36877016]
[1738912625192,0.2060918,97020.0,97019.0,0.27048164]
[1738912625389,0.2061151,97009.0,97002.0,0.49138308]
[1738912625598,0.98183183,97009.0,97008.0,0.42472483]
[1738912625801,0.5669151,97009.0,97008.0,0.42472483]
[1738912627496,0.5669151,97009.0,97008.0,0.42972483]
[1738912627893,0.5669151,97009.0,97008.0,0.43272483]
[1738912628300,0.5669151,97009.0,97008.0,0.008]
[1738912632705,0.3608,97009.0,97008.0,0.008]
[1738912632898,0.3608,97009.0,97008.0,0.0534]
[1738912640196,0.3608,97013.0,97008.0,0.1026]
[1738912640401,0.3608,97026.0,97008.0,0.4634]
[1738912640606,0.3608,97026.0,97025.0,0.2060811]
[1738912641309,0.00015463,97027.0,97025.0,0.2060811]
[1738912641627,0.00015463,97027.0,97026.0,0.0925]
[1738912642113,0.00015463,97027.0,97026.0,0.1417]
[1738912643216,0.00415463,97027.0,97026.0,0.1417]
[1738912644110,0.00415463,97027.0,97026.0,0.5025]
[1738912644314,0.00815463,97027.0,97026.0,0.5025]
[1738912645815,0.00415463,97027.0,97026.0,0.5025]
[1738912646010,0.00415463,97027.0,97026.0,0.5045]
[1738912647406,0.00015463,97027.0,97026.0,0.5055]
[1738912649620,0.00015463,97027.0,97026.0,0.5045]
[1738912649917,0.00015463,97027.0,97026.0,0.5055]
[1738912650215,0.00015463,97027.0,97026.0,0.5045]
[1738912650921,0.00015463,97027.0,97026.0,0.5055]
[1738912652410,0.00015463,97027.0,97026.0,0.5543]
[1738912652613,0.00154636,97038.0,97026.0,0.5543]
[1738912652818,0.00154636,97038.0,97037.0,0.2060556]
[1738912653516,0.3608,97048.0,97028.0,0.1469756]
[1738912653821,0.3608,97058.0,97056.0,0.2060146]
[1738912655430,0.3608,97058.0,97056.0,0.001]
[1738912655431,0.5758128,97058.0,97056.0,0.001]
[1738912656220,0.3698,97058.0,97056.0,0.001]
[1738912656525,0.3698,97058.0,97056.0,0.2070152]
[1738912657131,0.3788,97058.0,97056.0,0.2080152]
[1738912664026,0.018,97058.0,97056.0,0.2080152]
[1738912664226,0.00015455,97067.0,97048.0,0.5083756]
[1738912664428,0.00015455,97067.0,97066.0,0.2059941]
[1738912665333,0.00115455,97067.0,97066.0,0.2059941]
[1738912666842,0.00915455,97067.0,97066.0,0.2069941]
[1738912667032,0.01115455,97067.0,97066.0,0.2069941]
[1738912667742,0.01815455,97067.0,97066.0,0.2079941]
[1738912668743,0.00915455,97067.0,97066.0,0.2069941]
[1738912668934,0.01415455,97067.0,97066.0,0.3528941]
[1738912669730,0.00915455,97067.0,97066.0,0.3518941]
[1738912673957,0.3608,97091.0,97076.0,0.205973]
[1738912675058,0.01054571,97077.0,97076.0,0.206973]
[1738912675357,0.01854571,97077.0,97076.0,0.207973]
[1738912685370,0.01054571,97077.0,97076.0,0.206973]
[1738912685661,0.01354571,97077.0,97076.0,0.206973]
[1738912685868,0.00454571,97077.0,97076.0,0.205973]
[1738912686664,0.00754571,97077.0,97076.0,0.205973]
[1738912686865,0.006,97077.0,97076.0,0.205973]
[1738912687163,0.003,97077.0,97076.0,0.205973]
[1738912687363,0.006,97077.0,97076.0,0.205973]
[1738912687766,0.003,97077.0,97076.0,0.205973]
[1738912687964,0.005,97077.0,97076.0,0.205973]
[1738912696473,0.00015455,97086.0,97076.0,0.205973]
[1738912696665,0.15470493,97096.0,97085.0,0.3608]
[1738912696966,0.28522879,97100.0,97098.0,0.2059252]
[1738912699281,0.28522879,97100.0,97098.0,0.2069252]
[1738912699662,0.28522879,97100.0,97099.0,0.0448]
[1738912700767,0.00015455,97109.0,97099.0,0.0448]
[1738912701161,0.00015455,97109.0,97105.0,0.2059107]
[1738912701372,0.00015455,97109.0,97107.0,0.2059073]
[1738912702278,0.00115455,97109.0,97107.0,0.2059073]
[1738912702668,0.00215455,97109.0,97108.0,0.3608]
[1738912702969,0.15414622,97126.0,97114.0,0.2058921]
[1738912703170,0.15414622,97126.0,97116.0,0.5077756]
[1738912703380,0.15414622,97126.0,97117.0,0.0448]
[1738912703575,0.15414622,97126.0,97118.0,0.205884]
[1738912703777,0.15414622,97126.0,97117.0,0.0448]
[1738912703778,0.15414622,97126.0,97120.0,0.205878]
[1738912704367,0.15414622,97126.0,97124.0,0.3608]
[1738912704578,0.15414622,97126.0,97125.0,0.0939]
[1738912705572,0.15414622,97126.0,97125.0,0.0949]
[1738912705771,0.00010251,97132.0,97125.0,0.0949]
[1738912706173,0.00010251,97132.0,97125.0,0.0959]
[1738912706374,0.00010251,97132.0,97127.0,0.2058631]
[1738912706680,0.00010251,97132.0,97125.0,0.0959]
[1738912706890,0.00010251,97132.0,97131.0,0.2058565]
[1738912707885,0.00010251,97132.0,97131.0,0.22194569]
[1738912708082,0.3608,97148.0,97135.0,0.205846]
[1738912708286,0.3608,97148.0,97139.0,0.2058395]
[1738912708585,0.3608,97148.0,97140.0,0.01608765]
[1738912708784,0.3608,97148.0,97141.0,0.23801214]
[1738912708973,0.3608,97148.0,97144.0,0.2058286]
[1738912709173,0.3608,97160.0,97145.0,0.0464]
[1738912709375,0.3608,97160.0,97150.0,0.1469756]
[1738912709577,0.3608,97160.0,97152.0,0.2058109]
[1738912709783,0.3608,97160.0,97153.0,0.01608695]
[1738912709978,0.3608,97160.0,97152.0,0.2058109]
[1738912709979,0.3608,97160.0,97154.0,0.01608695]
[1738912710179,0.3608,97160.0,97151.0,0.01608919]
[1738912710381,0.3608,97160.0,97155.0,0.01608919]
[1738912710691,0.3608,97160.0,97156.0,0.0458]
[1738912710987,0.3608,97160.0,97156.0,0.06188919]
[1738912711581,0.3608,97160.0,97157.0,0.01608919]
[1738912711990,0.3608,97160.0,97158.0,0.01608919]
[1738912712489,0.3608,97160.0,97159.0,0.01608919]
[1738912713078,0.3608,97160.0,97156.0,0.09484]
[1738912715989,0.3608,97160.0,97158.0,0.2057991]
[1738912717585,0.36212,97178.0,97165.0,0.2057832]
[1738912717782,0.3608,97178.0,97168.0,0.1469756]
[1738912717986,0.3608,97178.0,97166.0,0.0941]
[1738912719086,0.5665575,97178.0,97166.0,0.0941]
[1738912719794,0.5665575,97178.0,97166.0,0.3008806]
[1738912720087,0.5665575,97178.0,97168.0,0.2057777]
[1738912720293,0.5665575,97178.0,97170.0,0.2057732]
[1738912721083,0.3608,97178.0,97172.0,0.2057686]
[1738912721279,0.3608,97178.0,97176.0,0.2057594]
[1738912721480,0.3608,97195.0,97178.0,0.2057555]
[1738912721689,0.3608,97195.0,97182.0,0.2057475]
[1738912721995,0.3608,97195.0,97187.0,0.2057378]
[1738912722494,0.1,97200.0,97188.0,0.06318064]
[1738912722787,0.1,97200.0,97189.0,0.01608064]
[1738912722990,0.1,97200.0,97191.0,0.2057289]
[1738912723187,0.1,97200.0,97188.0,0.25845874]
[1738912723188,0.1,97200.0,97193.0,0.2057243]
[1738912723394,0.1,97200.0,97194.0,0.01608064]
[1738912723691,0.1,97200.0,97195.0,0.01607909]
[1738912723891,0.1,97200.0,97196.0,0.01607909]
[1738912724088,0.1,97200.0,97197.0,0.01607909]
[1738912724483,0.1,97200.0,97197.0,0.03216223]
[1738912725203,0.1,97200.0,97199.0,0.2057125]
[1738912725496,0.3608,97216.0,97199.0,0.24751649]
[1738912725682,0.3608,97216.0,97206.0,0.1469756]
[1738912725883,0.3608,97216.0,97208.0,0.2056935]
[1738912726093,0.3608,97216.0,97209.0,0.10899909]
[1738912726289,0.3608,97216.0,97210.0,0.01607909]
[1738912726490,0.3608,97216.0,97211.0,0.01607909]
[1738912726697,0.3608,97216.0,97212.0,0.01607909]
[1738912726886,0.3608,97216.0,97213.0,0.01607909]
[1738912727090,0.3608,97216.0,97214.0,0.01607909]
[1738912727287,0.3608,97216.0,97215.0,0.01607909]
[1738912727596,0.3608,97216.0,97215.0,0.04180145]
[1738912727898,0.2056581,97225.0,97215.0,0.09003833]
[1738912728099,0.2056581,97225.0,97216.0,0.07395519]
[1738912728395,0.2056581,97225.0,97217.0,0.04180145]
[1738912728590,0.2056581,97225.0,97218.0,0.04180145]
[1738912728894,0.2056581,97225.0,97209.0,0.2986104]
[1738912728895,0.2056581,97225.0,97219.0,0.05788459]
[1738912729096,0.2056625,97223.0,97220.0,0.04180145]
[1738912729397,0.2056625,97223.0,97219.0,0.01608314]
[1738912729596,0.2056625,97223.0,97209.0,0.2986104]
[1738912729795,0.3608,97211.0,97209.0,0.2986104]
[1738912730196,0.3608,97211.0,97210.0,0.0418014]
[1738912731490,0.2056625,97223.0,97210.0,0.0418014]
[1738912731698,0.3608,97211.0,97210.0,0.0418014]
[1738912738201,0.5664871,97211.0,97210.0,0.0418014]
[1738912738391,0.2057019,97204.0,97203.0,0.0001543]
[1738912738597,0.2057083,97201.0,97200.0,0.00154302]
[1738912739401,0.2057083,97201.0,97185.0,0.30692368]
[1738912739402,0.2057189,97196.0,97185.0,0.30692368]
[1738912739703,0.5665189,97196.0,97185.0,0.30692368]
[1738912739905,0.5665189,97196.0,97186.0,0.0001543]
[1738912740597,0.6608,97196.0,97186.0,0.0001543]
[1738912740804,0.5665379,97187.0,97185.0,0.28623195]
[1738912741002,0.98145463,97187.0,97185.0,0.28623195]
[1738912741207,1.28145463,97187.0,97185.0,0.28623195]
[1738912741403,0.2057612,97176.0,97175.0,0.24545112]
[1738912741607,0.98147793,97176.0,97175.0,0.24545112]
[1738912742194,1.28147793,97176.0,97175.0,0.24545112]
[1738912742501,1.28147793,97176.0,97175.0,0.24390758]
[1738912742706,0.98147793,97176.0,97175.0,0.24390758]
[1738912742919,0.5665612,97176.0,97175.0,0.24490758]
[1738912744205,0.5665612,97176.0,97175.0,0.24690758]
[1738912744704,0.5665612,97176.0,97175.0,0.003]
[1738912744911,0.5665612,97176.0,97166.0,0.2059352]
[1738912745202,0.3608,97167.0,97166.0,0.2059352]
[1738912745408,0.3608,97167.0,97166.0,0.22202077]
[1738912745605,0.3608,97167.0,97166.0,0.24775728]
[1738912746500,0.004,97176.0,97166.0,0.04197638]
[1738912746801,0.004,97176.0,97175.0,0.2057633]
[1738912747001,0.004,97176.0,97175.0,0.24758538]